bitfinex-derivatives/quotes_ETHF0:USTF0_20240913
["timestamp","ask_amount","ask_price","bid_price","bid_amount"]
[1726266469274,4.63081,2449.4,2448.7,4.00124]
[1726266469275,0.78792,2448.9,2448.7,4.00124]
[1726266469473,0.78792,2448.9,2448.7,0.79344]
[1726266469873,0.3798,2448.9,2448.7,0.79344]
[1726266470872,0.40813,2448.8,2448.5,1.46928648]
[1726266471073,0.40813,2448.8,2448.5,1.46927648]
[1726266471372,0.40815,2448.8,2448.5,1.46927648]
[1726266471676,0.40816,2448.7,2448.5,1.06110648]
[1726266471872,0.7895,2448.9,2448.5,1.06110648]
[1726266472067,0.40815,2448.7,2448.4,5.05680648]
[1726266472374,0.40814,2448.8,2448.4,5.46500648]
[1726266472770,0.40815,2448.7,2448.4,5.05680648]
[1726266472974,0.7895,2448.9,2448.4,3.2078]
[1726266472975,0.40818,2448.5,2448.4,3.2078]
[1726266473579,1.19778,2448.5,2448.4,3.2078]
[1726266476969,0.7896,2448.5,2448.2,0.4018]
[1726266477278,1.19779,2448.5,2448.2,0.4018]
[1726266478190,0.4082,2448.4,2448.2,0.4018]
[1726266478675,0.4082,2448.4,2448.2,1.46290648]
[1726266479077,0.4082,2448.4,2448.2,0.4018]
[1726266480081,3.2078,2448.4,2448.1,1.06110648]
[1726266480287,0.40825,2448.1,2448.0,3.2078]
[1726266480780,0.40827,2448.0,2447.8,1.45310648]
[1726266480976,1.20157,2448.0,2447.8,1.06110648]
[1726266481482,0.7933,2448.0,2447.8,1.46940648]
[1726266481686,0.40825,2448.2,2447.8,1.06110648]
[1726266481883,0.40825,2448.1,2447.8,1.06110648]
[1726266482184,0.40825,2448.1,2447.7,1.97617671]
[1726266482185,0.80815,2448.1,2447.7,1.46940648]
[1726266482389,0.3934,2448.0,2447.7,1.46940648]
[1726266482582,0.3934,2448.0,2447.8,1.06110648]
[1726266482783,0.3934,2448.0,2447.8,0.4083]
[1726266482984,0.3999,2448.1,2447.8,0.4083]
[1726266483189,0.3999,2448.1,2447.7,1.46940648]
[1726266483483,0.80816,2448.1,2447.8,1.06110648]
[1726266483690,0.80816,2448.1,2447.8,1.46939648]
[1726266484083,0.80816,2448.1,2447.8,1.06110648]
[1726266484484,0.40827,2448.0,2447.8,1.06110648]
[1726266484686,0.40827,2448.0,2447.7,1.46941648]
[1726266484879,0.40827,2448.0,2447.8,1.06110648]
[1726266485181,0.80816,2448.1,2447.8,0.4083]
[1726266485782,0.80816,2448.1,2447.9,0.3865]
[1726266487688,0.40827,2448.0,2447.9,0.3865]
[1726266487991,0.40827,2448.0,2447.7,0.40831]
[1726266488189,0.40827,2448.0,2447.7,0.79481]
[1726266488379,0.40829,2447.9,2447.7,0.3865]
[1726266488582,0.3999,2448.1,2447.7,0.3865]
[1726266488583,0.40828,2448.0,2447.7,0.4083]
[1726266488791,0.389,2447.9,2447.7,0.4083]
[1726266489490,0.40831,2447.8,2447.6,3.2078]
[1726266490198,0.389,2447.9,2447.7,0.40831]
[1726266491194,0.79728,2447.9,2447.7,0.40831]
[1726266491384,0.389,2447.9,2447.7,0.40831]
[1726266491786,0.40832,2447.7,2447.5,1.46660648]
[1726266491985,0.389,2447.9,2447.6,3.2078]
[1726266492196,0.40831,2447.8,2447.6,3.2078]
[1726266492608,0.40832,2447.7,2447.6,3.2078]
[1726266493294,0.40831,2447.8,2447.6,3.2078]
[1726266493494,0.40832,2447.7,2447.6,3.2078]
[1726266494900,0.40831,2447.8,2447.6,3.2078]
[1726266495097,0.40832,2447.7,2447.6,3.2078]
[1726266495596,1.02066,2448.1,2447.6,3.2078]
[1726266495805,0.8135,2448.0,2447.6,3.2078]
[1726266496496,0.40832,2447.7,2447.6,3.2078]
[1726266496692,0.40832,2447.7,2447.5,0.4055]
[1726266498001,0.40832,2447.7,2447.5,0.81385]
[1726266498792,0.40831,2447.8,2447.5,0.81385]
[1726266498996,0.40829,2447.9,2447.5,0.4055]
[1726266499292,0.4083,2447.8,2447.6,0.40832]
[1726266501299,0.8135,2448.0,2447.7,3.2078]
[1726266501499,0.40829,2447.9,2447.7,3.61611]
[1726266501999,0.4046,2448.0,2447.7,7.2934]
[1726266502206,0.391,2448.2,2447.8,1.18329]
[1726266502398,0.40825,2448.1,2447.8,1.18329]
[1726266502599,0.40827,2448.0,2447.9,0.4013]
[1726266503308,0.782,2448.2,2447.8,0.3931]
[1726266503309,1.80261,2448.2,2447.8,0.3931]
[1726266503502,0.40829,2447.9,2447.6,3.61612]
[1726266503704,0.782,2447.8,2447.6,3.61612]
[1726266503902,0.782,2447.8,2447.7,0.40832]
[1726266505606,1.19031,2447.8,2447.6,3.2078]
[1726266507807,0.782,2447.8,2447.6,3.2078]
[1726266508208,0.782,2447.8,2447.6,3.61612]
[1726266508707,1.1903,2447.8,2447.6,3.61612]
[1726266514811,0.391,2447.8,2447.7,0.40832]
[1726266515210,0.79931,2447.8,2447.7,0.40832]
[1726266515715,0.79931,2447.8,2447.6,3.61612]
[1726266516400,0.40832,2447.7,2447.6,4.26890648]
[1726266516604,0.391,2447.8,2447.7,0.40832]
[1726266516807,0.7993,2447.8,2447.6,3.61612]
[1726266517205,0.7993,2447.8,2447.6,4.67722648]
[1726266518402,0.40832,2447.7,2447.6,4.67722648]
[1726266518715,0.40832,2447.7,2447.6,4.26890648]
[1726266518906,0.81142,2447.7,2447.6,4.67723648]
[1726266519105,0.81142,2447.7,2447.6,4.26890648]
[1726266519705,0.81142,2447.7,2447.6,4.67723648]
[1726266520107,0.81142,2447.7,2447.6,4.26890648]
[1726266520818,0.81142,2447.7,2447.6,3.2078]
[1726266522613,0.81142,2447.7,2447.6,4.26890648]
[1726266523014,0.40832,2447.7,2447.6,4.26890648]
[1726266525507,0.40832,2447.7,2447.6,5.74644388]
[1726266525911,0.40832,2447.7,2447.6,2.53864388]
[1726266526110,1.42912,2447.7,2447.5,1.06110648]
[1726266526307,0.81123,2447.6,2447.5,1.06110648]
[1726266528515,1.83207,2447.6,2447.5,1.06110648]
[1726266528810,1.42923,2447.5,2447.4,1.56787671]
[1726266529017,0.40838,2447.3,2447.2,1.07080856]
[1726266529213,0.4084,2447.2,2447.1,1.07080856]
[1726266529418,0.8167,2447.2,2447.0,1.07080856]
[1726266529615,0.40842,2447.1,2447.0,1.07080856]
[1726266529914,0.81671,2447.2,2447.0,1.47723337]
[1726266530120,0.81671,2447.2,2447.0,1.0705916]
[1726266530308,0.81671,2447.2,2447.1,1.0705916]
[1726266530710,0.4083,2447.2,2447.1,1.0705916]
[1726266530914,0.8167,2447.2,2447.1,1.0705916]
[1726266531111,0.8167,2447.2,2447.0,1.0705916]
[1726266531322,0.40842,2447.1,2447.0,1.0705916]
[1726266532211,0.40842,2447.1,2446.9,1.4790316]
[1726266532516,0.4039,2447.0,2446.9,1.0705916]
[1726266532709,0.4039,2447.0,2446.9,1.47623371]
[1726266533111,0.4039,2447.0,2446.9,2.54588346]
[1726266533322,0.4039,2447.0,2446.9,2.95433346]
[1726266534227,0.4039,2447.0,2446.9,1.47809975]
[1726266536712,0.81671,2447.2,2446.9,5.56449975]
[1726266536921,3.2078,2447.4,2447.1,0.40841]
[1726266537123,0.4084,2447.3,2447.2,1.1468]
[1726266540321,1.02092,2447.5,2447.2,1.1468]
[1726266540322,0.40837,2447.4,2447.2,1.1468]
[1726266540513,0.40838,2447.3,2447.2,1.1468]
[1726266542121,4.0077,2447.6,2447.2,1.1468]
[1726266542324,0.40838,2447.3,2447.2,1.1468]
[1726266542522,0.40838,2447.4,2447.2,1.1468]
[1726266542826,0.40838,2447.3,2447.2,1.1468]
[1726266543818,0.40841,2447.2,2447.0,4.68586975]
[1726266544019,0.81311,2447.2,2447.0,5.44176975]
[1726266545325,3.6156,2447.6,2447.2,0.40839]
[1726266545526,0.4041,2447.4,2447.0,5.03334975]
[1726266545828,0.4084,2447.3,2447.1,0.40841]
[1726266546323,0.4084,2447.2,2447.1,0.40841]
[1726266546723,0.4084,2447.2,2447.0,5.44176975]
[1726266548025,0.4084,2447.2,2447.1,0.40842]
[1726266549622,0.4084,2447.2,2447.0,5.44176975]
[1726266551229,0.4084,2447.2,2447.1,0.40842]
[1726266551425,0.40838,2447.3,2447.2,0.40839]
[1726266551630,0.40838,2447.3,2447.0,5.03334975]
[1726266551631,0.4084,2447.2,2447.1,0.40841]
[1726266552219,0.4084,2447.2,2447.0,5.44176975]
[1726266552634,0.40841,2447.2,2447.0,5.44176975]
[1726266552829,0.40841,2447.2,2447.0,4.37212]
[1726266553733,1.42504,2447.4,2447.0,0.40842]
[1726266553936,0.3956,2447.1,2447.0,0.40842]
[1726266554130,0.80402,2447.1,2447.0,0.40842]
[1726266554335,0.3956,2447.1,2447.0,0.40842]
[1726266554635,0.40841,2447.2,2446.9,1.06964975]
[1726266554929,0.40841,2447.2,2447.0,0.40842]
[1726266555134,0.40841,2447.2,2447.0,3.61622]
[1726266555727,0.40841,2447.2,2447.0,4.68586975]
[1726266557136,0.40841,2447.2,2447.1,0.40842]
[1726266557441,0.40841,2447.2,2447.0,4.68586975]
[1726266557831,0.40841,2447.2,2447.1,0.40842]
[1726266558040,1.22581,2447.7,2447.0,8.36384975]
[1726266558233,1.22581,2447.7,2447.3,0.40838]
[1726266558234,0.40837,2447.4,2447.3,0.40838]
[1726266558740,0.40838,2447.4,2447.3,0.40838]
[1726266559135,0.40838,2447.3,2447.2,1.58539]
[1726266559447,0.40838,2447.3,2447.2,0.40839]
[1726266559740,0.4004,2447.5,2447.2,0.81979]
[1726266559741,0.7771,2447.5,2447.2,0.81979]
[1726266560944,0.40837,2447.4,2447.2,0.81979]
[1726266561538,0.40838,2447.3,2447.2,0.81979]
[1726266562741,0.40838,2447.3,2447.2,0.40839]
[1726266562935,0.7771,2447.5,2447.1,1.46444975]
[1726266562936,0.4084,2447.2,2447.1,1.46444975]
[1726266563137,4.8872,2447.2,2447.1,1.06964975]
[1726266563334,4.4788,2447.2,2446.9,1.06964975]
[1726266563538,0.7781,2447.1,2446.8,1.06964975]
[1726266563841,0.40846,2446.9,2446.7,1.06964975]
[1726266564338,0.40846,2446.9,2446.7,1.56787671]
[1726266564339,0.3907,2446.8,2446.7,1.56787671]
[1726266564539,0.3907,2446.8,2446.7,2.54622115]
[1726266564743,0.3907,2446.8,2446.7,2.54619584]
[1726266565039,0.79917,2446.8,2446.7,2.54619584]
[1726266565431,0.40844,2447.0,2446.7,2.54619584]
[1726266565634,0.40845,2447.0,2446.8,1.06991999]
[1726266565844,0.3907,2447.1,2446.9,0.7796]
[1726266566045,0.3907,2447.1,2446.9,1.1511]
[1726266566236,0.79912,2447.1,2446.9,2.22101999]
[1726266566436,0.79912,2447.1,2446.9,1.1511]
[1726266567140,0.79912,2447.1,2446.9,2.22101999]
[1726266570265,0.40843,2447.0,2446.9,2.22101999]
[1726266570447,0.40843,2447.0,2446.9,3.69807917]
[1726266570652,0.40843,2447.0,2446.9,1.1511]
[1726266571355,0.40845,2446.9,2446.8,1.06991999]
[1726266571553,0.79045,2446.9,2446.8,1.06991999]
[1726266571754,4.87765,2446.9,2446.8,1.06991999]
[1726266572149,0.40847,2446.8,2446.7,1.06991999]
[1726266572356,0.40847,2446.8,2446.7,2.54729814]
[1726266572548,0.40847,2446.8,2446.7,2.54729793]
[1726266573554,0.382,2446.9,2446.7,2.54729793]
[1726266573748,0.79046,2446.9,2446.8,1.07075494]
[1726266574153,4.87766,2446.9,2446.8,1.07075494]
[1726266574349,0.79046,2446.9,2446.8,1.07075494]
[1726266574557,0.40846,2446.9,2446.8,1.07075494]
[1726266576263,0.40847,2446.8,2446.7,1.56787671]
[1726266576560,0.40847,2446.8,2446.7,3.04504324]
[1726266576951,0.40847,2446.8,2446.7,3.04503051]
[1726266577956,0.40847,2446.8,2446.7,1.56787671]
[1726266578157,0.40847,2446.8,2446.7,3.04498052]
[1726266579960,0.40847,2446.8,2446.7,3.04486916]
[1726266580465,0.40847,2446.8,2446.7,2.54742947]
[1726266580661,0.40847,2446.8,2446.7,1.47699245]
[1726266581267,0.3902,2447.0,2446.7,3.04486916]
[1726266581562,0.40846,2446.9,2446.8,1.07036392]
[1726266586163,0.40846,2446.9,2446.8,1.47883392]
[1726266586356,0.40846,2446.9,2446.8,1.07036392]
[1726266586758,0.40846,2446.9,2446.8,1.47883392]
[1726266587165,0.40846,2446.9,2446.8,1.07036392]
[1726266587562,0.3902,2447.0,2446.8,1.47881392]
[1726266587762,0.79863,2447.0,2446.9,0.396]
[1726266587958,0.3902,2447.0,2446.9,1.17995]
[1726266588156,0.3907,2447.1,2446.9,1.17995]
[1726266589062,0.40844,2447.0,2446.8,1.47882392]
[1726266589262,0.40844,2447.0,2446.8,1.07036392]
[1726266589470,0.40844,2447.0,2446.9,0.40845]
[1726266591360,4.118,2447.6,2446.9,4.0864]
[1726266591562,0.4084,2447.2,2447.1,1.07036392]
[1726266591762,0.40842,2447.1,2447.0,1.46516392]
[1726266592373,0.40843,2447.0,2446.9,1.94017671]
[1726266592670,0.81153,2447.0,2446.9,1.8491511]
[1726266593075,0.81153,2447.0,2446.9,3.41702781]
[1726266593660,0.81153,2447.0,2446.9,1.94017671]
[1726266593865,0.4031,2447.0,2446.9,3.82550817]
[1726266594074,0.79432,2447.1,2446.9,3.82550817]
[1726266594266,0.79432,2447.1,2446.9,2.34862671]
[1726266594267,0.40843,2447.0,2446.9,2.34862671]
[1726266594465,0.40843,2447.0,2446.9,2.25771492]
[1726266594771,0.40843,2447.0,2446.9,3.82559163]
[1726266594968,0.40843,2447.0,2446.9,2.25771492]
[1726266595173,0.40843,2447.0,2446.9,3.82559163]
[1726266597574,1.22582,2447.7,2446.9,13.50354163]
[1726266597768,0.81171,2447.2,2447.1,1.07051279]
[1726266597970,0.81171,2447.2,2447.1,1.44891279]
[1726266598477,0.81171,2447.2,2447.1,2.9260725]
[1726266598865,0.81171,2447.2,2447.1,1.44891279]
[1726266600370,0.81171,2447.2,2447.1,1.85733279]
[1726266600769,0.81171,2447.2,2447.1,1.44891279]
[1726266601373,0.81171,2447.2,2447.0,1.07051279]
[1726266601580,0.80702,2447.1,2447.0,1.07051279]
[1726266601771,0.40843,2447.0,2446.9,1.07051279]
[1726266601977,0.79413,2447.0,2446.9,2.95629424]
[1726266602183,0.79413,2447.0,2446.9,3.04520816]
[1726266602375,0.40843,2447.0,2446.9,3.04520816]
[1726266602670,0.40843,2447.0,2446.9,3.43100816]
[1726266603272,0.40843,2447.0,2446.9,1.86313145]
[1726266603471,0.40843,2447.0,2446.9,1.47733145]
[1726266603670,0.40843,2447.0,2446.9,2.54807619]
[1726266603875,0.40843,2447.0,2446.9,1.47733145]
[1726266604277,0.40843,2447.0,2446.9,2.5481492]
[1726266604479,0.40843,2447.0,2446.9,1.47733145]
[1726266605187,0.40843,2447.0,2446.9,3.04520816]
[1726266605981,0.40843,2447.0,2446.9,3.0455661]
[1726266606179,0.40843,2447.0,2446.9,3.04572008]
[1726266606376,0.80703,2447.1,2446.9,3.04572008]
[1726266606682,0.80702,2447.1,2447.0,1.0710642]
[1726266607182,0.4033,2447.2,2447.0,1.0710642]
[1726266607374,0.40839,2447.3,2447.1,1.4596642]
[1726266607573,0.40839,2447.3,2447.2,1.07111555]
[1726266607778,1.81141,2447.5,2447.3,0.40838]
[1726266607779,0.81976,2447.5,2447.3,0.40838]
[1726266607979,0.81976,2447.5,2447.4,1.45897954]
[1726266608176,0.40837,2447.4,2447.3,1.07097954]
[1726266608384,5.894,2447.4,2447.3,1.07097954]
[1726266608585,0.4084,2447.2,2447.1,1.07097954]
[1726266608781,0.4084,2447.3,2447.1,3.08425522]
[1726266608986,0.3791,2447.4,2447.2,2.54867554]
[1726266609182,0.3791,2447.4,2447.3,1.47664541]
[1726266609183,0.40838,2447.4,2447.3,1.47664541]
[1726266609382,0.40838,2447.4,2447.3,1.85624541]
[1726266609586,0.81976,2447.5,2447.3,2.26462541]
[1726266609882,0.81976,2447.5,2447.3,2.23124541]
[1726266609883,0.40837,2447.4,2447.3,2.23124541]
[1726266610091,0.4114,2447.5,2447.4,0.40837]
[1726266610384,0.81975,2447.5,2447.4,1.07087839]
[1726266610687,0.40837,2447.4,2447.3,1.85617839]
[1726266610885,0.40837,2447.4,2447.3,3.33361344]
[1726266611188,0.81977,2447.5,2447.3,3.74198243]
[1726266611378,0.40837,2447.4,2447.3,1.85617839]
[1726266611675,0.4114,2447.5,2447.3,3.74196814]
[1726266611676,0.81976,2447.5,2447.3,3.74196814]
[1726266611874,0.81976,2447.5,2447.3,2.26455839]
[1726266612081,0.40837,2447.4,2447.3,1.07087839]
[1726266612380,0.40837,2447.4,2447.2,1.60646932]
[1726266612381,0.40838,2447.3,2447.2,1.07087839]
[1726266612581,0.81468,2447.3,2447.2,2.54817945]
[1726266613092,0.81468,2447.3,2447.2,1.47730106]
[1726266613287,0.4063,2447.3,2447.2,2.54782429]
[1726266613584,0.3831,2447.6,2447.5,0.40835]
[1726266613788,0.3831,2447.6,2447.5,1.0704172]
[1726266614886,0.3831,2447.6,2447.4,1.8675772]
[1726266615789,0.3831,2447.6,2447.4,1.4592172]
[1726266615986,0.3831,2447.6,2447.4,1.8675772]
[1726266616184,0.3831,2447.6,2447.5,1.0704172]
[1726266616392,0.80303,2447.7,2447.5,1.0704172]
[1726266616584,0.80303,2447.7,2447.4,0.79716]
[1726266616585,0.80303,2447.7,2447.4,1.8675772]
[1726266616787,0.3942,2447.8,2447.5,1.0704172]
[1726266616994,0.3942,2447.8,2447.6,1.4787472]
[1726266617292,0.3942,2447.8,2447.7,0.3708]
[1726266617487,0.8025,2447.8,2447.7,0.3708]
[1726266617785,0.40832,2447.7,2447.5,1.0704172]
[1726266618090,0.40832,2447.7,2447.5,0.7474]
[1726266618387,0.80251,2447.8,2447.5,1.15575]
[1726266618688,0.3942,2447.8,2447.5,1.15574]
[1726266618897,0.40832,2447.7,2447.5,0.7474]
[1726266619384,0.3942,2447.8,2447.5,0.7474]
[1726266619694,0.3942,2447.8,2447.4,4.2782172]
[1726266619891,0.40834,2447.6,2447.4,4.6865872]
[1726266620390,0.376,2447.5,2447.4,4.6865872]
[1726266623187,0.376,2447.5,2447.4,4.2782172]
[1726266623188,0.78435,2447.5,2447.4,4.2782172]
[1726266623388,0.40837,2447.4,2447.3,1.0704172]
[1726266623588,0.81197,2447.4,2447.2,1.4788072]
[1726266624592,0.81197,2447.4,2447.3,0.40838]
[1726266624785,0.81197,2447.4,2447.2,1.4788072]
[1726266624991,0.40838,2447.3,2447.2,1.0704172]
[1726266625194,0.40838,2447.3,2447.1,2.6642272]
[1726266626291,0.40838,2447.3,2447.1,2.2596272]
[1726266626587,0.40839,2447.3,2447.1,1.4788372]
[1726266626989,0.40839,2447.3,2447.2,0.7928]
[1726266627185,0.40839,2447.3,2447.2,0.3844]
[1726266627486,0.40838,2447.3,2447.2,0.3844]
[1726266628185,0.4036,2447.4,2447.2,0.3844]
[1726266628387,0.40838,2447.3,2447.2,0.3844]
[1726266628682,0.40838,2447.3,2447.2,0.7714]
[1726266630279,0.4036,2447.4,2447.1,1.0704172]
[1726266630482,5.10737,2447.3,2446.9,1.0704172]
[1726266630694,1.02097,2447.3,2446.8,1.8242172]
[1726266630902,0.40843,2447.1,2446.9,0.40845]
[1726266631191,0.40843,2447.1,2446.8,1.8242172]
[1726266631405,0.40844,2447.0,2446.8,2.2326672]
[1726266633083,0.40844,2447.0,2446.9,0.40845]
[1726266633391,0.4036,2447.4,2446.8,1.8242172]
[1726266633589,0.40839,2447.3,2447.1,0.40841]
[1726266633993,0.4036,2447.4,2447.2,1.1872]
[1726266634189,0.40838,2447.3,2447.2,0.7788]
[1726266634491,0.4036,2447.4,2447.3,0.40838]
[1726266634694,0.81197,2447.4,2447.2,1.18719]
[1726266635295,0.81197,2447.4,2447.3,0.40838]
[1726266635599,0.81197,2447.4,2447.2,1.18719]
[1726266636287,0.81197,2447.4,2447.2,0.7788]
[1726266636487,0.4036,2447.4,2447.3,0.40838]
[1726266636697,0.376,2447.5,2447.4,0.40837]
[1726266636892,0.78436,2447.5,2447.3,0.40837]
[1726266637500,0.40836,2447.5,2447.3,0.40837]
[1726266638298,0.40836,2447.5,2447.2,5.0570172]
[1726266638502,0.40838,2447.4,2447.2,1.18719]
[1726266638995,0.40838,2447.4,2447.3,0.40838]
[1726266639201,0.40838,2447.4,2447.2,2.2576072]
[1726266639398,0.40838,2447.4,2447.3,0.40838]
[1726266639796,0.40838,2447.4,2447.2,1.8492172]
[1726266640099,1.22518,2447.3,2447.2,0.40839]
[1726266640499,0.8168,2447.3,2447.2,0.40839]
[1726266641391,0.8168,2447.3,2447.1,1.0704172]
[1726266641592,0.40842,2447.1,2447.0,2.2351172]
[1726266642803,0.40841,2447.2,2447.0,2.6435372]
[1726266643098,1.22519,2447.3,2447.1,0.40842]
[1726266643296,0.4084,2447.2,2447.1,1.4788372]
[1726266643796,0.4084,2447.2,2447.1,1.0704172]
[1726266644001,0.4084,2447.2,2447.0,2.6435372]
[1726266644397,0.40842,2447.1,2447.0,2.6435372]
[1726266644696,0.40842,2447.1,2447.0,4.11972276]
[1726266644902,0.40842,2447.1,2447.0,8.20612276]
[1726266645297,0.40842,2447.1,2447.0,4.11972276]
[1726266645603,0.40842,2447.1,2447.0,2.6435372]
[1726266646107,0.8168,2447.3,2447.0,2.6435372]
[1726266646108,0.40841,2447.2,2447.1,0.40842]
[1726266646421,1.22519,2447.3,2447.2,0.4084]
[1726266646706,0.4084,2447.2,2447.1,0.4084]
[1726266647801,0.40837,2447.4,2447.1,4.0864]
[1726266648103,0.40835,2447.5,2447.4,0.40836]
[1726266648305,0.40834,2447.6,2447.4,1.58446]
[1726266648600,0.40834,2447.6,2447.4,2.6548772]
[1726266648791,0.40834,2447.6,2447.5,0.40835]
[1726266648995,0.40835,2447.5,2447.4,2.6548772]
[1726266649204,0.786,2447.7,2447.4,2.6548772]
[1726266649205,0.40835,2447.6,2447.4,2.6548772]
[1726266649610,0.40835,2447.5,2447.4,2.6548772]
[1726266649999,0.40835,2447.5,2447.4,4.13102709]
[1726266650313,0.40834,2447.6,2447.5,0.40835]
[1726266650696,0.40834,2447.6,2447.4,2.2465172]
[1726266651106,0.40834,2447.6,2447.5,0.40835]
[1726266651294,0.40834,2447.6,2447.4,2.6548772]
[1726266651902,0.40834,2447.6,2447.5,0.40835]
[1726266652403,0.40834,2447.6,2447.4,2.6548772]
[1726266652702,0.40835,2447.5,2447.4,2.6548772]
[1726266652900,0.40835,2447.5,2447.4,3.72287423]
[1726266653100,0.40835,2447.5,2447.4,3.33777423]
[1726266653299,0.40835,2447.5,2447.4,1.0704172]
[1726266653998,0.40835,2447.5,2447.4,1.4787872]
[1726266655292,0.40835,2447.5,2447.4,1.8777872]
[1726266655906,0.40835,2447.5,2447.4,0.80737]
[1726266656303,0.40835,2447.5,2447.4,1.8777872]
[1726266656509,0.40835,2447.5,2447.4,0.80737]
[1726266657212,0.40835,2447.5,2447.4,1.8777872]
[1726266658403,0.40835,2447.5,2447.4,1.0704172]
[1726266659306,1.02086,2447.6,2447.2,5.2218158]
[1726266659513,0.40837,2447.4,2447.3,2.5464563]
[1726266660210,1.40272,2447.7,2447.3,2.9548363]
[1726266660405,0.40835,2447.5,2447.4,1.86114406]
[1726266660605,0.40835,2447.5,2447.4,1.45278406]
[1726266660812,0.40835,2447.5,2447.4,0.3828]
[1726266661014,0.40837,2447.4,2447.3,1.47836406]
[1726266661207,0.40837,2447.4,2447.3,2.95482636]
[1726266661405,0.40837,2447.4,2447.3,1.47836406]
[1726266661717,0.40837,2447.4,2447.3,2.95486622]
[1726266661912,0.40837,2447.4,2447.3,1.47836406]
[1726266662206,0.40837,2447.4,2447.3,2.54650355]
[1726266662414,1.4293,2447.4,2447.3,1.06998406]
[1726266662601,0.40838,2447.3,2447.2,1.06998406]
[1726266662801,0.40838,2447.3,2447.1,0.81611]
[1726266662802,0.4084,2447.2,2447.1,1.47768406]
[1726266663001,1.42941,2447.2,2447.1,1.06998406]
[1726266663213,1.02101,2447.2,2447.1,1.07025497]
[1726266663399,1.02101,2447.2,2447.0,1.07025497]
[1726266663601,0.40842,2447.1,2447.0,1.07025497]
[1726266663806,0.40843,2447.0,2446.9,0.40845]
[1726266664005,1.02101,2447.2,2446.9,3.08210268]
[1726266664209,0.40842,2447.1,2447.0,3.08210268]
[1726266664614,0.40842,2447.1,2447.0,2.54704413]
[1726266664815,0.40842,2447.1,2447.0,3.08210268]
[1726266665021,0.40842,2447.1,2447.0,2.54701309]
[1726266665208,0.40842,2447.1,2447.0,1.0702647]
[1726266665507,1.02101,2447.2,2446.9,1.60535429]
[1726266665508,0.40843,2447.0,2446.9,1.0702647]
[1726266665717,0.78133,2447.0,2446.9,1.0702647]
[1726266666217,0.78133,2447.0,2446.8,1.0702647]
[1726266666218,0.40845,2446.9,2446.8,1.0702647]
[1726266666422,0.78215,2446.9,2446.8,1.0702647]
[1726266670617,0.40847,2446.8,2446.7,4.6868647]
[1726266670916,0.40847,2446.8,2446.7,6.16324982]
[1726266671820,0.40847,2446.8,2446.7,6.16314481]
[1726266672010,1.02093,2447.4,2446.7,6.16314481]
[1726266672011,1.02099,2447.3,2446.7,6.16314481]
[1726266672210,0.40844,2447.0,2446.9,0.40845]
[1726266672412,0.40844,2447.0,2446.9,0.78475]
[1726266672611,0.40844,2447.0,2446.9,0.3763]
[1726266673221,0.40844,2447.0,2446.9,0.78475]
[1726266673516,0.40844,2447.0,2446.9,0.3763]
[1726266675419,0.40843,2447.1,2447.0,0.40843]
[1726266675719,0.3829,2447.2,2447.1,0.4076]
[1726266675911,0.7766,2447.3,2447.1,0.4076]
[1726266675912,0.3952,2447.3,2447.1,0.4076]
[1726266676113,1.11582,2447.7,2447.3,0.40838]
[1726266676321,0.3777,2447.6,2447.1,1.4778647]
[1726266676621,0.40831,2447.8,2447.6,0.40833]
[1726266676816,0.40831,2447.8,2447.7,0.4016]
[1726266678817,0.3777,2447.9,2447.5,1.19124]
[1726266678818,0.40833,2447.7,2447.5,1.19124]
[1726266679013,0.40833,2447.7,2447.5,1.58444]
[1726266679321,0.4066,2447.6,2447.5,0.79704]
[1726266679523,0.8084,2447.6,2447.5,0.79704]
[1726266679916,1.21673,2447.6,2447.5,0.3887]
[1726266680111,0.40838,2447.3,2447.2,1.0702647]
[1726266680316,0.40838,2447.3,2447.2,2.54484669]
[1726266680520,0.40838,2447.3,2447.2,1.06931202]
[1726266680718,0.40838,2447.3,2447.1,2.27392202]
[1726266680919,0.4066,2447.2,2447.1,2.27392202]
[1726266681118,0.4066,2447.2,2447.1,3.74957654]
[1726266681509,0.4066,2447.2,2447.1,2.68026452]
[1726266681711,0.815,2447.2,2447.1,1.06939371]
[1726266682023,0.40842,2447.1,2447.0,4.27719371]
[1726266682919,0.40842,2447.1,2447.0,4.68562371]
[1726266683221,0.40842,2447.1,2447.0,4.27719371]
[1726266683811,0.40838,2447.4,2447.2,0.4084]
[1726266684012,0.40836,2447.5,2447.3,1.47777371]
[1726266684223,0.40836,2447.5,2447.4,0.7562]
[1726266686823,0.40838,2447.4,2447.2,1.47778371]
[1726266687028,0.40838,2447.4,2447.2,1.87138371]
[1726266688116,0.40836,2447.5,2447.3,0.40838]
[1726266688313,0.40837,2447.4,2447.2,1.87138371]
[1726266689225,0.40837,2447.4,2447.2,0.80199]
[1726266689720,0.40837,2447.4,2447.2,1.87138371]
[1726266690121,0.40837,2447.4,2447.2,0.80199]
[1726266690524,0.40837,2447.4,2447.2,1.87138371]
[1726266690923,0.40838,2447.3,2447.2,1.46299371]
[1726266691129,0.79038,2447.3,2447.2,0.3936]
[1726266691436,0.40838,2447.3,2447.2,0.3936]
[1726266694522,0.40838,2447.3,2447.2,0.802]
[1726266694925,0.40838,2447.3,2447.2,0.3936]
[1726266697228,1.02061,2448.2,2447.2,7.02501372]
[1726266697427,0.4083,2447.8,2447.6,0.40832]
[1726266697625,0.8131,2447.9,2447.7,1.60682]
[1726266697822,0.4083,2447.8,2447.7,1.1985]
[1726266699231,0.81309,2447.9,2447.7,1.6068]
[1726266700829,0.4048,2447.9,2447.5,1.06939371]
[1726266701033,0.386,2448.0,2447.8,0.4083]
[1726266701531,0.386,2448.0,2447.7,5.08040371]
[1726266701834,0.79428,2448.0,2447.8,0.4083]
[1726266702023,0.386,2448.0,2447.8,0.4083]
[1726266702421,0.79427,2448.0,2447.8,0.4083]